bitfinex/quotes_ETHUSD_20241023
["timestamp","ask_amount","ask_price","bid_price","bid_amount"]
[1729697079479,3.93291,2542.7,2542.3,1.9506025]
[1729697079884,7.86583,2542.7,2542.3,3.02665494]
[1729697080112,3.93299,2542.6,2542.3,3.02665494]
[1729697080411,3.93291,2542.7,2542.3,3.02665494]
[1729697080571,0.09833386,2542.6,2542.3,3.02665494]
[1729697080915,3.93264,2542.9,2542.3,3.02665494]
[1729697081073,4.03113929,2542.8,2542.3,6.96002494]
[1729697081269,4.03113929,2542.8,2542.3,6.95995494]
[1729697081512,3.9323,2543.1,2542.6,3.93297]
[1729697081818,0.09831814,2543.0,2542.5,0.7597]
[1729697082109,3.93283,2542.7,2542.5,0.7597]
[1729697082406,3.93268,2542.8,2542.5,0.7597]
[1729697082622,4.03096514,2542.9,2542.5,0.7597]
[1729697082787,3.93212,2543.2,2542.8,0.8032]
[1729697082983,4.63996485,2543.5,2542.8,0.8032]
[1729697082984,3.93237,2543.0,2542.8,0.8032]
[1729697083229,3.93237,2543.0,2542.5,0.6702516]
[1729697083230,0.09831568,2542.9,2542.5,0.8032]
[1729697083529,3.93267,2542.8,2542.5,0.8032]
[1729697083762,3.93237,2543.0,2542.5,4.73626]
[1729697084114,3.93237,2543.0,2542.5,4.73627]
[1729697084433,3.93237,2543.0,2542.5,0.8032]
[1729697084434,3.93256,2542.9,2542.5,0.8032]
[1729697085001,3.93289,2542.7,2542.5,0.8032]
[1729697085203,4.03121675,2542.7,2542.5,0.8032]
[1729697085534,7.96415675,2542.7,2542.5,0.8032]
[1729697085730,7.96415675,2542.7,2542.3,1.9506025]
[1729697085731,3.93329,2542.4,2542.3,1.9506025]
[1729697085899,4.03162929,2542.4,2542.3,1.9506025]
[1729697086793,7.55529991,2542.8,2542.3,1.9506025]
[1729697087094,3.93298,2542.6,2542.3,1.9506025]
[1729697087293,3.93329,2542.4,2542.3,1.9506025]
[1729697087827,3.93306,2542.6,2542.3,1.9506025]
[1729697088002,3.62254991,2543.1,2542.5,0.7621]
[1729697088205,4.71387,2543.4,2542.5,0.7621]
[1729697088206,3.62254991,2542.9,2542.5,0.7621]
[1729697088403,3.93329,2542.4,2542.3,1.9506025]
[1729697088711,0.0983367,2542.4,2542.3,1.9506025]
[1729697088916,4.40464991,2542.9,2542.3,1.9506025]
[1729697089085,3.9331,2542.6,2542.3,1.9506025]
[1729697089287,4.03143347,2542.6,2542.3,1.9506025]
[1729697089528,3.93313,2542.5,2542.3,1.9506025]
[1729697089906,3.93329,2542.4,2542.3,1.9506025]
[1729697090132,3.933,2542.6,2542.3,1.9506025]
[1729697090623,3.93329,2542.4,2542.3,1.9506025]
[1729697090943,4.03162358,2542.4,2542.3,1.9506025]
[1729697091155,3.93329,2542.4,2542.3,1.9506025]
[1729697091939,3.0,2543.3,2542.3,2.23441994]
[1729697092268,3.9329,2542.7,2542.5,0.8226]
[1729697093720,0.09832128,2542.8,2542.5,0.8226]
[1729697093920,0.09832147,2543.1,2542.5,5.42635625]
[1729697094156,0.61559488,2542.8,2542.7,3.93282]
[1729697094357,4.03039147,2543.2,2542.7,3.93282]
[1729697094526,0.61554462,2543.1,2542.7,3.93282]
[1729697094955,0.61554462,2543.1,2542.7,4.01146858]
[1729697095179,0.61554462,2543.1,2542.7,3.93282]
[1729697096026,0.61554462,2543.1,2542.8,0.8094]
[1729697096581,0.61554462,2543.1,2542.8,1.283622]
[1729697096725,0.09830778,2543.0,2542.4,0.8094]
[1729697096930,0.09830778,2543.0,2542.4,4.75265]
[1729697096931,4.03071778,2543.0,2542.4,4.75265]
[1729697097152,7.96319778,2543.0,2542.4,4.75265]
[1729697097329,3.93252,2542.9,2542.4,5.81732325]
[1729697097659,3.93252,2542.9,2542.5,0.07865454]
[1729697097819,3.93237,2543.0,2542.5,4.01176454]
[1729697098018,4.0306882,2543.0,2542.5,3.93311]
[1729697098218,4.54778462,2543.1,2542.5,0.07865456]
[1729697098457,3.93236,2543.0,2542.5,0.07865456]
[1729697098663,3.93259,2542.9,2542.5,0.07865456]
[1729697098864,3.93259,2542.9,2542.4,5.80725325]
[1729697099373,3.93269,2542.8,2542.5,0.0786546]
[1729697099658,3.93288,2542.7,2542.4,0.8094]
[1729697099867,3.93313,2542.5,2542.4,0.8094]
[1729697100026,3.93329,2542.4,2542.3,1.9506025]
[1729697100350,4.03162778,2542.4,2542.3,1.9506025]
[1729697101059,4.38837941,2542.4,2542.3,1.9506025]
[1729697101260,4.03162778,2542.4,2542.3,1.9506025]
[1729697101623,4.38852914,2542.4,2542.3,1.9506025]
[1729697102064,5.18812914,2542.4,2542.3,1.9506025]
[1729697102225,4.38852914,2542.4,2542.3,1.9506025]
[1729697102568,4.38853289,2542.4,2542.3,1.9506025]
[1729697102762,0.45524289,2542.4,2542.3,1.9506025]
[1729697102925,3.93308,2542.6,2542.3,2.7751025]
[1729697103124,4.03141306,2542.6,2542.3,2.7751025]
[1729697103385,3.9332,2542.5,2542.3,2.7751025]
[1729697103864,3.93329,2542.4,2542.3,1.9506025]
[1729697104062,4.03162315,2542.4,2542.3,1.9506025]
[1729697104365,4.3889687,2542.4,2542.3,1.9506025]
[1729697104860,8.01151861,2542.4,2542.3,1.9506025]
[1729697105083,10.91318546,2542.4,2542.3,1.9506025]
[1729697105363,7.29063555,2542.4,2542.3,1.9506025]
[1729697105570,7.38898718,2542.4,2542.3,1.9506025]
[1729697105770,11.01153709,2542.4,2542.3,1.9506025]
[1729697106072,10.55583991,2542.4,2542.3,1.9506025]
[1729697106367,6.93329,2542.4,2542.3,1.9506025]
[1729697106587,11.01159052,2542.4,2542.3,1.9506025]
[1729697106731,10.91324288,2542.4,2542.3,1.9506025]
[1729697107130,7.4836,2542.2,2542.1,1.9e-06]
[1729697107349,12.33742832,2542.2,2542.1,1.9e-06]
[1729697107669,12.23905288,2542.2,2542.1,1.9e-06]
[1729697107836,11.68905288,2542.2,2542.1,1.9e-06]
[1729697108030,4.29100297,2542.2,2542.1,1.9e-06]
[1729697108229,4.38935604,2542.2,2542.1,1.9e-06]
[1729697108540,8.01190595,2542.2,2542.1,1.9e-06]
[1729697108735,7.91355288,2542.2,2542.1,1.9e-06]
[1729697109366,6.9336,2542.2,2542.1,1.9e-06]
[1729697109582,11.01182379,2542.2,2542.1,1.9e-06]
[1729697109784,10.91346222,2542.2,2542.1,1.9e-06]
[1729697110517,0.35731231,2542.2,2542.1,0.8179019]
[1729697110806,0.09834677,2542.4,2542.1,0.8179019]
[1729697111004,4.03163677,2542.4,2542.1,0.8179019]
[1729697111212,3.93278,2542.8,2542.4,3.93322]
[1729697111508,0.35739473,2542.7,2542.6,3.93298]
[1729697111680,4.03079867,2543.0,2542.5,4.75096]
[1729697111875,0.09832867,2543.0,2542.5,4.75096]
[1729697112071,0.09832867,2543.0,2542.7,3.93282]
[1729697112271,4.54781462,2543.1,2542.8,0.8179]
[1729697112272,0.61554462,2543.1,2542.8,0.8179]
[1729697112692,4.03077939,2543.0,2542.8,0.8179]
[1729697112897,3.93251,2542.9,2542.8,0.8179]
[1729697113121,4.03082959,2542.9,2542.8,0.8179]
[1729697113331,3.93251,2542.9,2542.8,0.8179]
[1729697113696,4.0306888,2543.0,2542.8,0.8179]
[1729697114035,0.0983188,2543.0,2542.8,0.8179]
[1729697114239,4.54787462,2543.1,2542.8,0.8179]
[1729697114432,3.93236,2543.0,2542.8,0.8179]
[1729697114600,0.09831898,2542.9,2542.8,0.8179]
[1729697114800,4.03082898,2542.9,2542.8,0.8179]
[1729697115033,4.03082898,2542.9,2542.6,0.05898735]
[1729697115244,3.93271,2542.8,2542.6,0.05898735]
[1729697115544,3.93252,2542.9,2542.6,0.05898735]
[1729697115910,0.09832256,2543.0,2542.7,3.9327]
[1729697116143,3.93182,2543.4,2542.9,3.93248]
[1729697116313,3.93182,2543.4,2542.8,4.75552]
[1729697116314,4.03025781,2543.3,2542.8,4.75552]
[1729697116513,3.93209,2543.2,2542.8,4.75552]
[1729697116842,0.09830785,2543.2,2542.8,4.75552]
[1729697117040,3.93137,2543.7,2543.1,3.9322]
[1729697117346,0.35737272,2543.6,2543.3,3.93179]
[1729697117643,4.02951077,2543.8,2543.3,3.93179]
[1729697117852,3.93128,2543.7,2543.2,4.68895]
[1729697118153,3.93084,2544.0,2543.2,0.767]
[1729697118307,0.35730972,2543.9,2543.6,0.773]
[1729697118510,4.02912318,2544.0,2543.6,0.773]
[1729697118709,3.93025,2544.4,2543.6,0.773]
[1729697118710,3.93028,2544.4,2543.9,3.93092]
[1729697119010,0.09827079,2544.3,2543.9,3.93087]
[1729697119236,3.93,2544.6,2544.1,3.93054]
[1729697119564,3.92911,2545.1,2544.2,0.08860572]
[1729697119725,3.92952,2544.9,2544.3,0.8205]
[1729697119911,0.09824568,2544.8,2544.4,3.93007]
[1729697120123,0.09824568,2544.8,2544.4,7.91910889]
[1729697120422,3.93004,2544.5,2544.4,0.05893889]
[1729697120637,0.09825573,2545.0,2544.5,0.8205]
[1729697120814,4.63623299,2545.8,2544.6,0.8305]
[1729697121016,3.92943,2544.9,2544.6,0.8205]
[1729697121233,7.85839,2545.1,2544.6,0.8205]
[1729697121448,3.9294,2545.0,2544.6,0.8205]
[1729697122066,3.92935,2545.0,2544.6,0.8205]
[1729697122361,3.92973,2544.7,2544.6,0.8205]
[1729697122531,4.02797808,2544.7,2544.6,0.8205]
[1729697122735,3.92961,2544.8,2544.6,0.8205]
[1729697123053,3.92973,2544.7,2544.6,0.8205]
[1729697123265,4.02797818,2544.7,2544.4,0.05893889]
[1729697123415,3.93004,2544.5,2544.4,0.05893889]
[1729697123617,4.02829613,2544.5,2544.4,0.05893889]
[1729697125717,4.02829613,2544.5,2544.0,0.7667]
[1729697125718,3.93048,2544.3,2544.0,0.7667]
[1729697126063,3.93094,2544.0,2543.6,0.86296873]
[1729697126353,3.93112,2543.8,2543.6,0.86296873]
[1729697126664,0.09828285,2543.8,2543.6,0.86296873]
[1729697126948,3.93097,2543.9,2543.6,0.86296873]
[1729697128339,3.93091,2544.0,2543.6,0.86296873]
[1729697128869,3.93098,2543.9,2543.6,0.86296873]
[1729697129579,7.86207,2543.9,2543.6,0.86296873]
[1729697129794,3.93098,2543.9,2543.6,0.86296873]
[1729697131482,7.86209,2543.9,2543.6,0.86296873]
[1729697131646,3.93149,2543.6,2543.2,0.7816]
[1729697131840,3.93149,2543.6,2542.9,0.7816]
[1729697131841,3.93232,2543.1,2542.9,0.7816]
[1729697132072,0.09829247,2543.5,2542.9,0.7816]
[1729697132073,3.93199,2543.3,2542.9,0.7816]
[1729697132255,0.09830626,2543.5,2542.9,0.7816]
[1729697132456,3.93166,2543.5,2542.9,0.7816]
[1729697132784,3.93159,2543.5,2542.9,4.71407]
[1729697133076,3.93144,2543.6,2543.0,3.93234]
[1729697133246,3.93163,2543.5,2543.0,3.93234]
[1729697134096,3.93176,2543.4,2542.9,5.67217146]
[1729697134445,7.8636,2543.4,2542.9,1.73966146]
[1729697134675,3.93176,2543.4,2542.9,1.73966146]
[1729697134986,7.86361,2543.4,2542.9,1.73966146]
[1729697135187,3.93176,2543.4,2542.9,5.67208146]
[1729697135684,3.93154,2543.6,2542.9,5.67208146]
[1729697135685,3.93154,2543.6,2542.9,1.73966146]
[1729697135844,3.93162,2543.5,2543.0,3.93235]
[1729697136266,3.93162,2543.5,2543.1,0.07863962]
[1729697136790,0.09829448,2543.7,2543.2,4.749]
[1729697136943,3.93144,2543.6,2543.3,0.05897683]
[1729697137564,3.93091,2544.0,2543.4,0.07862805]
[1729697137773,3.93032,2544.4,2543.6,4.63623299]
[1729697137956,8.57527299,2545.2,2543.6,4.63623299]
[1729697137957,0.78,2544.9,2543.9,0.01]
[1729697138173,0.78,2544.9,2544.2,3.93046]
[1729697138174,3.92975,2544.7,2544.2,3.93046]
[1729697138486,3.92975,2544.7,2544.1,7.8611]
[1729697138657,3.92975,2544.7,2544.2,3.93041]
[1729697138862,3.92975,2544.7,2544.3,0.8171]
[1729697139061,3.93019,2544.4,2544.3,0.8171]
[1729697139289,3.93035,2544.3,2544.2,0.05895556]
[1729697139968,3.93119,2543.8,2543.6,0.7742]
[1729697141070,3.93156,2543.6,2543.3,0.87117683]
[1729697141268,3.9315,2543.6,2543.3,0.88117683]
[1729697141482,3.93168,2543.5,2543.3,0.88117683]
[1729697141688,3.93159,2543.5,2543.3,0.88117683]
[1729697141996,4.02988133,2543.5,2543.0,3.93236]
[1729697142164,3.93175,2543.4,2543.0,4.01099925]
[1729697142699,3.9316,2543.5,2543.0,4.01099925]
[1729697142842,3.9316,2543.5,2543.1,3.99116299]
[1729697143046,3.93124,2543.8,2543.1,3.99116299]
[1729697143047,3.93143,2543.6,2543.1,3.99116299]
[1729697143587,3.93143,2543.6,2543.1,0.05897299]
[1729697143588,3.93161,2543.5,2543.1,0.05897299]
[1729697143906,3.93176,2543.4,2543.1,0.05897299]
[1729697144180,3.93143,2543.6,2543.1,0.05897299]
[1729697144181,3.93143,2543.6,2543.1,4.06979883]
[1729697144549,3.93143,2543.6,2543.1,0.13760883]
[1729697144763,3.93174,2543.4,2543.1,0.05897299]
[1729697145193,3.93143,2543.6,2543.1,0.05897299]
[1729697145488,3.9316,2543.5,2543.1,0.05897299]
[1729697145647,4.0298948,2543.5,2543.1,0.05897299]
[1729697145846,3.93166,2543.5,2543.1,0.05897299]
[1729697146258,7.86339,2543.5,2543.1,0.05897299]
[1729697146475,3.93166,2543.5,2543.1,0.05897299]
[1729697146759,3.93175,2543.4,2543.1,0.05897299]
[1729697147549,3.93192,2543.3,2543.1,0.05897299]
[1729697147760,3.93205,2543.2,2543.1,0.05897299]
[1729697147961,4.03036603,2543.2,2543.1,0.05897299]
[1729697148685,4.03036603,2543.2,2542.6,0.7774]
[1729697148686,3.93263,2542.9,2542.6,0.7774]
[1729697148983,3.93267,2542.8,2542.6,0.7774]
[1729697149346,7.86543,2542.8,2542.6,0.7774]
[1729697149547,3.93267,2542.8,2542.7,0.05897271]
[1729697149951,3.93267,2542.8,2542.6,0.7774]
[1729697150163,7.86548,2542.8,2542.6,0.7774]
[1729697150367,3.93267,2542.8,2542.6,0.7774]
[1729697150580,7.86549,2542.8,2542.6,0.7774]
[1729697150800,3.93282,2542.7,2542.6,0.7774]
[1729697151013,4.03117483,2542.7,2542.5,0.0589949]
[1729697151168,3.93298,2542.6,2542.5,0.0589949]
[1729697151369,4.03130841,2542.6,2542.5,0.0589949]
[1729697151682,0.09832841,2542.6,2542.5,0.0589949]
[1729697151883,4.03130841,2542.6,2542.5,0.0589949]
[1729697152903,3.9336,2542.2,2542.1,1.9e-06]
[1729697153105,3.93347,2542.3,2542.1,1.9e-06]
[1729697153320,0.7574,2543.1,2542.1,4.0123995]
[1729697153607,3.9336,2542.2,2542.1,0.05900186]
[1729697153793,4.03181199,2542.3,2542.1,0.05900186]
[1729697153992,3.9336,2542.2,2542.1,0.05900186]
[1729697154785,3.93223,2543.1,2542.1,0.05900186]
[1729697154983,3.93289,2542.7,2542.2,0.7958]
[1729697155194,3.93313,2542.5,2542.2,0.7958]
[1729697155720,3.93334,2542.4,2542.2,0.7958]
[1729697155920,3.93344,2542.3,2542.1,0.05900186]
[1729697156216,3.9336,2542.2,2542.1,0.05900186]
[1729697156514,0.09834159,2542.3,2542.1,0.05900186]
[1729697156676,3.93334,2542.4,2542.1,0.05900186]
[1729697157810,7.86673,2542.4,2542.1,0.05900186]
[1729697158010,3.93334,2542.4,2542.1,0.05900186]
[1729697159037,4.03187154,2542.3,2542.1,0.05900186]
[1729697160287,0.09834154,2542.3,2542.1,0.05900186]
[1729697160609,3.93327,2542.5,2542.1,0.05900186]
[1729697160912,4.03105573,2542.8,2542.2,3.9335]
[1729697161133,3.93233,2543.1,2542.4,3.93329]
[1729697161271,3.93202,2543.3,2542.8,3.93259]
[1729697161624,0.09830907,2543.2,2542.8,3.93258]
[1729697161767,4.03042907,2543.2,2542.8,3.93258]
[1729697161973,4.70541,2544.0,2542.9,0.88934932]
[1729697162282,3.9317,2543.5,2543.0,3.93227]
[1729697162482,4.02999473,2543.5,2543.1,3.93216]
[1729697162688,3.9317,2543.5,2543.1,4.01079578]
[1729697162896,3.9317,2543.5,2543.1,3.93216]
[1729697163213,3.93129,2543.7,2543.1,4.01079578]
[1729697163413,3.93145,2543.6,2543.1,4.01079578]
[1729697163576,3.93077,2544.1,2543.3,0.8079]
[1729697163777,3.93098,2543.9,2543.4,0.07862456]
[1729697164014,3.93145,2543.6,2543.3,0.8079]
[1729697164318,3.93072,2544.1,2543.5,3.99051881]
[1729697164485,3.93097,2543.9,2543.5,3.99051881]
[1729697164686,3.93113,2543.8,2543.5,0.05896881]
[1729697164893,3.93113,2543.8,2543.3,4.73977]
[1729697164894,4.02957799,2543.7,2543.3,0.8079]
[1729697165087,3.93143,2543.6,2543.3,0.8079]
[1729697165318,3.93143,2543.6,2543.0,0.8079]
[1729697165319,3.93174,2543.4,2543.0,0.8079]
[1729697165863,3.93099,2543.9,2543.0,0.8079]
[1729697165864,3.93128,2543.7,2543.1,3.93206]
[1729697166006,3.93091,2544.0,2543.5,0.8253]
[1729697166346,3.93067,2544.1,2543.6,3.9903274]
[1729697166499,3.8202,2544.4,2543.6,3.9903274]
[1729697166500,4.02918787,2544.0,2543.6,0.0589674]
[1729697167022,3.93097,2543.9,2543.6,0.0589674]
[1729697167201,0.09828389,2543.8,2543.6,0.0589674]
[1729697167401,4.0289938,2544.1,2543.6,3.9902574]
[1729697167614,0.0982838,2544.1,2543.6,4.06887979]
[1729697167954,0.0982838,2544.1,2543.6,0.0589674]
[1729697168118,3.93128,2543.7,2543.2,4.75733]
[1729697168321,3.93128,2543.7,2543.2,0.8253]
[1729697168322,0.09829198,2543.7,2543.2,0.8253]
[1729697168517,0.09829198,2543.7,2542.9,3.93251]
[1729697168518,3.9323,2543.1,2542.9,0.7983]
[1729697168721,3.93197,2543.3,2542.9,0.7983]
[1729697169038,3.93197,2543.3,2542.8,3.99155627]
[1729697169039,3.9323,2543.1,2542.8,0.05898627]
[1729697169431,0.09830676,2543.0,2542.8,0.05898627]
[1729697169749,3.93245,2543.0,2542.8,0.05898627]
[1729697170103,3.93216,2543.2,2542.8,0.05898627]
[1729697170544,0.09830743,2543.2,2542.8,0.05898627]
[1729697170714,3.93153,2543.6,2543.1,3.93212]
[1729697170915,4.02997315,2543.5,2543.2,0.7752]
[1729697171207,3.93187,2543.4,2542.9,8.64013]
[1729697171450,3.93187,2543.4,2542.9,9.50997163]
[1729697171644,3.93182,2543.4,2542.9,5.57753163]
[1729697171850,7.86365,2543.4,2542.9,5.57753163]
[1729697172028,0.40593946,2544.1,2543.1,4.6841]
[1729697172238,4.02893947,2544.1,2543.6,3.9313]
[1729697172404,4.02893947,2544.1,2543.4,0.7519]
[1729697172405,3.93097,2543.9,2543.4,4.68357]
[1729697172603,7.96031349,2543.9,2543.4,4.68357]
[1729697172812,3.93078,2544.1,2543.4,4.68355]
[1729697173113,3.93107,2543.9,2543.4,4.68356]
[1729697173313,4.02935156,2543.9,2543.4,4.68356]
[1729697173724,4.02935156,2543.9,2543.5,3.93158]
[1729697173956,4.02935156,2543.9,2543.4,4.68356]
[1729697174346,3.93107,2543.9,2543.4,4.68356]
[1729697174751,3.93107,2543.9,2543.4,4.68355]
[1729697174952,3.93107,2543.9,2543.5,0.47621752]
[1729697175116,7.86212,2543.9,2543.4,4.68355]
[1729697175313,2.38455161,2545.1,2543.4,4.68355]
[1729697175314,4.72357,2545.0,2543.7,0.7519]
[1729697175551,3.92989,2544.6,2544.1,3.93054]
[1729697175738,0.09825758,2544.5,2544.2,3.93048]
[1729697175943,3.92969,2544.8,2544.1,3.93054]
[1729697175944,0.09825757,2544.7,2544.3,4.68216]
[1729697176115,3.92965,2544.8,2544.3,4.68216]
[1729697176314,7.85935,2544.8,2544.3,4.68216]
[1729697176554,0.0982483,2544.7,2544.3,0.7519]
[1729697176716,0.02,2545.7,2544.4,0.07859864]
[1729697176717,3.9289,2545.3,2544.4,0.07859864]
[1729697177063,0.09823839,2545.2,2544.8,3.92957]
[1729697177221,4.02724839,2545.2,2544.7,3.92971]
[1729697177570,3.92919,2545.1,2544.6,7.85957]
[1729697177730,3.92919,2545.1,2544.6,3.98872388]
[1729697178068,0.09823746,2545.0,2544.6,0.05894388]
[1729697178355,3.92927,2545.0,2544.6,0.05894388]
[1729697178727,3.92927,2545.0,2544.6,3.98882388]
[1729697179517,3.92927,2545.0,2544.6,0.05894388]
[1729697179744,4.68382,2545.5,2544.3,0.7519]
[1729697179745,3.92967,2544.8,2544.3,0.7519]
[1729697179946,0.09824921,2544.7,2544.0,4.76301]
[1729697180165,0.09824921,2544.7,2544.0,0.8323]
[1729697180166,3.93012,2544.5,2544.0,0.8323]
[1729697180349,3.9304,2544.3,2544.0,0.8323]
[1729697180660,3.9304,2544.3,2544.1,0.05895041]
[1729697180868,0.7971,2544.9,2544.1,0.05895041]
[1729697180869,3.9305,2544.2,2544.1,0.05895041]
[1729697181028,0.09826641,2544.3,2544.1,0.05895041]
[1729697181227,3.9302,2544.4,2544.1,0.05895041]
[1729697182252,3.92961,2544.8,2544.2,5.49634458]
[1729697182461,3.92903,2545.2,2544.8,4.71106]
[1729697182633,3.9289,2545.3,2544.8,0.7815]
[1729697182829,3.9289,2545.3,2544.9,3.9294]
[1729697182830,0.09822579,2545.3,2544.9,3.9294]
[1729697183139,4.02711579,2545.3,2544.8,0.7815]
[1729697183375,4.02711579,2545.3,2544.8,4.71103]
[1729697183732,3.92858,2545.5,2544.9,3.98835648]
[1729697184040,3.92881,2545.3,2544.9,0.05893648]
[1729697184435,4.02703779,2545.3,2544.9,0.05893648]
[1729697184636,3.92881,2545.3,2544.9,0.05893648]
[1729697185373,3.92839,2545.6,2545.0,3.92925]
[1729697185665,3.92839,2545.6,2545.2,0.7851]
[1729697186445,3.9288,2545.3,2544.9,0.84403648]
[1729697186767,3.92909,2545.2,2544.9,0.84403648]
[1729697186984,0.09823165,2545.1,2544.9,0.05893648]
[1729697187136,3.92927,2545.0,2544.9,0.05893648]
[1729697187330,4.02750934,2545.0,2544.9,0.05893648]
[1729697187839,4.02750934,2545.0,2544.3,0.7851]
[1729697187840,4.80060934,2545.0,2544.3,0.7851]
[1729697188040,3.93042,2544.3,2544.1,0.05895041]
[1729697188347,3.93033,2544.4,2544.1,0.05895041]
[1729697188545,4.02859369,2544.4,2544.1,0.05895041]
[1729697188746,3.93033,2544.4,2544.1,0.05895041]
[1729697188975,3.9305,2544.2,2544.1,0.05895041]
[1729697189274,3.9305,2544.3,2544.1,0.05895041]
[1729697190448,3.93021,2544.4,2544.1,0.05895041]
[1729697190845,3.93005,2544.5,2544.1,0.05895041]
[1729697191059,0.09825787,2544.6,2544.1,0.05895041]
[1729697191265,3.93001,2544.6,2544.1,3.98961041]
[1729697191505,3.93001,2544.6,2544.1,4.06821361]
[1729697191795,3.92928,2545.0,2544.1,4.06821361]
[1729697191796,3.92938,2545.0,2544.4,3.93007]
[1729697192068,3.92938,2545.0,2544.3,4.756]
[1729697192069,0.09823477,2544.9,2544.3,4.75604]
[1729697192270,3.92967,2544.8,2544.3,0.8257]
[1729697192474,0.09824937,2545.1,2544.3,1.31508199]
[1729697192684,3.92951,2544.9,2544.4,4.00863027]
[1729697192982,3.92951,2544.9,2544.5,0.0785903]
[1729697193283,7.85876,2545.0,2544.5,4.0086103]
[1729697193437,3.92944,2544.9,2544.5,3.93002]
[1729697193634,3.92925,2545.1,2544.5,3.92997]
[1729697193841,3.7906,2545.6,2544.5,3.92997]
[1729697193842,4.63623299,2545.7,2545.0,3.92927]
[1729697194078,0.7906,2546.0,2545.0,3.92927]
[1729697194079,3.9286,2545.5,2545.1,0.84638777]
[1729697194953,3.92832,2545.7,2545.1,0.84638777]
[1729697195151,0.09821734,2545.7,2545.1,0.84638777]
[1729697195367,3.92765,2546.1,2545.2,0.8176]
[1729697195589,0.61514276,2546.3,2545.3,4.00727928]
[1729697195590,3.92742,2546.2,2545.3,4.00727928]
[1729697195788,3.92797,2545.9,2545.4,4.80401393]
[1729697196389,3.92797,2545.9,2545.4,4.75401393]
[1729697196591,7.85556,2546.0,2545.5,3.92845]
[1729697196789,7.85556,2546.0,2545.5,4.00701062]
[1729697196790,3.92774,2546.0,2545.5,4.00701062]
[1729697196992,7.85557,2546.0,2545.5,4.88311308]
[1729697197192,3.92791,2545.9,2545.5,0.95466308]
[1729697197401,3.92791,2545.9,2545.5,0.07856062]
[1729697197763,3.92774,2546.0,2545.5,4.00694062]
[1729697197992,3.92753,2546.2,2545.6,3.92832]
[1729697198301,3.92783,2546.0,2545.5,4.00705062]
[1729697198597,3.928,2545.9,2545.4,3.92863]
[1729697199354,3.92807,2545.8,2545.5,0.07856138]
[1729697199560,3.92807,2545.8,2545.4,3.92863]
[1729697199797,3.92807,2545.8,2545.5,0.05891952]
[1729697200702,3.92842,2545.6,2545.2,4.74652]
[1729697200995,3.92824,2545.7,2545.3,3.9288]
[1729697201165,3.92824,2545.7,2545.2,5.69267176]
[1729697201371,3.92824,2545.7,2545.3,0.05892218]
[1729697201761,0.8224,2546.0,2545.3,0.05892218]
[1729697202099,3.92827,2545.7,2545.3,0.05892218]
[1729697202660,0.09821268,2545.6,2544.9,0.7843]
[1729697202873,5.45863299,2545.5,2544.6,0.84323535]
[1729697203170,3.92945,2544.9,2544.6,0.84323535]
[1729697203610,3.92971,2544.8,2544.6,0.84323535]
[1729697203769,3.92973,2544.7,2544.6,0.84323535]
[1729697203968,3.92973,2544.7,2544.6,0.05893535]
[1729697204404,3.92945,2544.9,2544.6,0.05893535]
[1729697204794,0.09824316,2545.0,2544.6,0.05893535]
[1729697204979,3.92889,2545.3,2544.7,4.78160452]
[1729697205179,3.92851,2545.5,2544.7,0.7733]
[1729697205487,3.92888,2545.3,2544.8,4.00813382]
[1729697205996,3.92888,2545.3,2544.9,3.92942]
[1729697206171,3.9282,2545.7,2544.7,4.70298]
[1729697206172,3.92837,2545.6,2545.1,3.9291]
[1729697206372,4.02658717,2545.6,2545.1,3.9291]
[1729697206701,3.92852,2545.5,2545.1,4.74138]
[1729697207218,4.73444723,2545.5,2544.8,0.7553]
[1729697207505,3.9289,2545.3,2544.8,4.68479]
[1729697207704,3.9289,2545.3,2544.8,4.76337187]
[1729697208277,3.9289,2545.3,2544.9,3.9294]
[1729697208771,3.9289,2545.3,2544.8,9.53013622]
[1729697208972,3.92859,2545.5,2545.0,3.92918]
[1729697209989,3.92859,2545.5,2545.1,3.92908]
[1729697210515,4.02657724,2545.6,2545.1,3.92908]
[1729697210677,3.92851,2545.5,2545.1,3.92908]
[1729697210873,3.92851,2545.5,2545.0,3.92918]
[1729697211098,3.92836,2545.6,2545.1,4.0076241]
[1729697211302,4.02657753,2545.6,2545.1,4.0076241]
[1729697211617,3.9285,2545.5,2545.1,4.0076241]
[1729697212175,0.09821753,2545.6,2545.1,0.0785741]
[1729697212517,3.92841,2545.6,2545.3,0.8097]
[1729697212686,3.9286,2545.5,2545.3,0.8097]
[1729697213009,4.02697772,2545.4,2545.0,0.8097]
[1729697213220,3.92876,2545.4,2545.0,0.8097]
[1729697213425,0.09822054,2545.4,2545.0,0.8097]
[1729697213593,3.92902,2545.2,2545.0,0.8097]
[1729697213782,3.92902,2545.2,2544.7,4.73931]
[1729697213985,3.92902,2545.2,2544.7,5.25981003]
[1729697214294,4.02691688,2545.4,2544.9,3.92935]
[1729697214295,0.09822688,2545.3,2544.9,3.92935]
[1729697214606,0.09822688,2545.3,2544.8,4.7977515]
[1729697214607,3.92901,2545.2,2544.8,4.7977515]
[1729697215116,3.92881,2545.3,2544.8,8.7272115]
[1729697215279,3.92881,2545.3,2544.8,8.64863]
[1729697215479,3.92896,2545.2,2544.8,5.3808065]
[1729697215713,3.92896,2545.2,2544.8,5.459388]
[1729697215890,3.92868,2545.4,2544.8,5.459388]
[1729697216084,3.92882,2545.3,2544.8,9.388888]
[1729697216314,3.92897,2545.2,2544.8,5.3808065]
[1729697216989,3.92884,2545.3,2544.8,1.4513465]
[1729697217201,3.92888,2545.3,2544.8,5.3808965]
[1729697217517,3.9285,2545.5,2545.0,3.92913]
[1729697217717,3.92873,2545.4,2544.9,4.4753578]
[1729697218087,3.92874,2545.4,2544.9,4.4753578]
[1729697218482,9.32040299,2545.8,2544.8,0.7896]
[1729697218483,3.92928,2545.0,2544.8,0.7896]
[1729697218830,3.92912,2545.1,2544.6,3.98872535]
[1729697218831,3.92973,2544.7,2544.6,0.05893535]
[1729697219328,3.92953,2544.9,2544.6,0.05893535]
[1729697219630,3.92929,2545.0,2544.6,0.05893535]
[1729697220382,3.92903,2545.2,2544.7,3.92966]